bitfinex/quotes_SOLUSD_20250518
["timestamp","ask_amount","ask_price","bid_price","bid_amount"]
[1747590650965,5.77367205,173.2,173.15,4.79720646]
[1747590651162,1.44365866,173.19,173.15,4.79720646]
[1747590651367,23.20432679,173.18,173.15,4.79720646]
[1747590651546,24.64798545,173.19,173.15,4.79720646]
[1747590651750,1.44365866,173.19,173.15,4.79720646]
[1747590651952,164.71139884,173.2,173.15,4.79720646]
[1747590652152,141.50707205,173.2,173.15,4.79720646]
[1747590652353,135.7334,173.2,173.15,4.79720646]
[1747590652754,32.83350604,173.21,173.15,4.79720646]
[1747590652977,56.03783283,173.21,173.15,4.79720646]
[1747590653671,50.26432679,173.21,173.15,10.57246337]
[1747590654177,56.03774919,173.21,173.15,4.79720646]
[1747590654479,50.26432679,173.21,173.15,10.57251748]
[1747590654772,27.06,173.21,173.15,10.57251748]
[1747590654972,50.26432679,173.21,173.15,10.57251748]
[1747590655555,27.04,173.21,173.15,10.57251748]
[1747590655755,7.21597343,173.24,173.15,10.57251748]
[1747590655957,57.46030022,173.24,173.15,10.57251748]
[1747590656156,28.48355976,173.24,173.15,10.57251748]
[1747590656356,162.7734,173.25,173.15,10.57251748]
[1747590656556,168.54555923,173.25,173.15,10.57251748]
[1747590656860,191.74988602,173.25,173.15,10.57251748]
[1747590657369,23.20432679,173.2,173.15,4.79720646]
[1747590657567,23.20432679,173.18,173.15,4.79720646]
[1747590657772,1.44392534,173.17,173.15,4.79720646]
[1747590657971,15.99154533,173.17,173.15,4.79720646]
[1747590658171,14.54761999,173.17,173.15,4.79720646]
[1747590658366,1.44397599,173.2,173.15,4.79720646]
[1747590658567,14.54761999,173.18,173.15,4.79720646]
[1747590658965,5.77467228,173.17,173.15,4.79720646]
[1747590659689,20.32166648,173.19,173.15,4.79720646]
[1747590659856,15.99156515,173.2,173.15,4.79720646]
[1747590660657,41.58761999,173.21,173.15,10.57243856]
[1747590660866,14.54761999,173.21,173.15,10.57243856]
[1747590661581,43.03130325,173.22,173.15,10.57243856]
[1747590662374,162.7534,173.23,173.15,25.01078681]
[1747590662590,27.02,173.23,173.15,25.01078681]
[1747590662768,41.56761999,173.26,173.15,25.01078681]
[1747590663074,14.54761999,173.25,173.15,25.01078681]
[1747590663256,20.31978557,173.25,173.15,25.01078681]
[1747590663457,14.54761999,173.25,173.15,25.01078681]
[1747590663953,20.3196542,173.25,173.15,25.01078681]
[1747590664249,14.54761999,173.25,173.15,25.01078681]
[1747590664454,34.23501602,173.26,173.15,25.01078681]
[1747590664654,14.54761999,173.25,173.15,25.01078681]
[1747590664949,34.23501602,173.26,173.15,25.01078681]
[1747590665187,14.54761999,173.21,173.15,10.57243856]
[1747590665388,14.54761999,173.2,173.15,10.57243856]
[1747590665692,14.54761999,173.19,173.15,4.79720646]
[1747590665851,1.44362687,173.2,173.15,4.79720646]
[1747590666050,14.54761999,173.19,173.15,4.79720646]
[1747590666781,1.44378912,173.24,173.15,4.79720646]
[1747590666782,14.54761999,173.2,173.15,4.79720646]
[1747590666982,14.54761999,173.19,173.15,4.79720646]
[1747590667183,20.20435258,173.23,173.15,4.79720646]
[1747590667358,14.54761999,173.18,173.15,4.79720646]
[1747590667563,14.54761999,173.16,173.15,4.79720646]
[1747590667881,23.28821274,173.16,173.15,4.79720646]
[1747590668968,49.28821274,173.16,173.15,4.79720646]
[1747590669267,6.443,173.14,173.01,5.77969443]
[1747590669463,23.28821274,173.08,173.01,5.77969443]
[1747590669681,27.0,173.09,173.01,5.77969443]
[1747590669983,50.28821274,173.09,173.01,5.77969443]
[1747590670280,27.0,173.09,173.01,5.77969443]
[1747590670483,27.0,173.09,173.01,21.10812358]
[1747590670683,1.6358,173.12,173.01,21.10812358]
[1747590670860,28.44456651,173.13,173.01,21.10812358]
[1747590671183,23.28821274,173.09,173.01,21.10812358]
[1747590671372,23.28821274,173.1,173.01,20.22972622]
[1747590671684,28.44456651,173.13,173.01,20.22972622]
[1747590671857,23.28821274,173.11,173.02,0.87821634]
[1747590672053,27.3,173.13,173.02,0.87821634]
[1747590672459,23.28821274,173.1,173.01,5.77969443]
[1747590672868,23.28821274,173.11,173.02,0.87836235]
[1747590673366,23.28821274,173.11,173.03,5.77934462]
[1747590673995,50.56821274,173.13,173.03,20.22770617]
[1747590674176,27.28,173.13,173.04,0.87783821]
[1747590674381,27.28,173.13,173.04,83.67783821]
[1747590674582,27.28,173.13,173.04,109.67783821]
[1747590675402,27.28,173.13,173.05,5.77867668]
[1747590675700,23.28821274,173.12,173.05,88.57867668]
[1747590675903,24.7323071,173.12,173.05,88.57867668]
[1747590676072,1.44409436,173.12,173.05,88.57867668]
[1747590676274,24.7323071,173.12,173.05,88.57867668]
[1747590676470,23.28821274,173.11,173.05,82.8]
[1747590677077,1.44409436,173.12,173.05,82.8]
[1747590677371,23.28821274,173.11,173.05,88.5785248]
[1747590677677,23.29548164,173.11,173.05,82.8]
[1747590677881,23.29548164,173.08,173.03,23.29548164]
[1747590678079,23.29548164,173.09,173.04,23.29548164]
[1747590678394,1.44447052,173.1,173.0,1.0]
[1747590678395,26.0,173.07,173.0,1.0]
[1747590678580,6.0144,173.05,173.0,1.0]
[1747590678770,1.44517013,173.04,173.0,1.0]
[1747590678971,46.59096328,173.01,173.0,1.0]
[1747590679280,29.07549435,173.01,173.0,1.0]
[1747590679471,7.2255364,173.01,173.0,1.0]
[1747590679672,53.81649968,173.01,173.0,1.0]
[1747590679875,7.2255364,173.01,173.0,1.0]
[1747590680092,53.81649968,173.01,173.0,1.0]
[1747590680477,7.2255364,173.01,173.0,1.0]
[1747590681012,30.52101804,173.01,173.0,1.0]
[1747590681183,114.55548033,173.01,172.83,14.46451908]
[1747590681498,114.55548033,173.01,172.89,23.29548164]
[1747590681499,5.78134936,172.97,172.89,23.29548164]
[1747590681667,1.44586584,172.96,172.9,23.29548164]
[1747590681876,5.78134936,172.97,172.9,23.29548164]
[1747590682070,23.29548164,172.95,172.85,26.0]
[1747590682269,23.29548164,172.94,172.89,23.29548164]
[1747590682701,23.29548164,172.96,172.87,5.78447164]
[1747590682909,1.44574662,172.99,172.91,23.29548164]
[1747590683205,23.29548164,172.97,172.92,23.29548164]
[1747590683377,23.29548164,172.96,172.87,5.78447164]
[1747590683571,23.29548164,172.96,172.91,23.29548164]
[1747590684279,23.29548164,172.97,172.87,82.8]
[1747590684494,23.29548164,172.91,172.86,23.29548164]
[1747590684689,23.29548164,172.91,172.81,26.0]
[1747590684872,23.29548164,172.9,172.8,23.29548164]
[1747590685077,23.29548164,172.87,172.82,23.29548164]
[1747590685299,23.29548164,172.87,172.81,23.29548164]
[1747590685599,23.29548164,172.88,172.82,23.29548164]
[1747590685778,1.44648907,172.92,172.77,5.7880419]
[1747590686101,23.29548164,172.87,172.77,5.7880419]
[1747590686282,47.05597066,172.94,172.8,23.29548164]
[1747590686283,24.74196453,172.86,172.8,23.29548164]
[1747590686486,1.44654466,172.88,172.82,23.29548164]
[1747590686701,23.29548164,172.89,172.78,26.0]
[1747590686873,23.29548164,172.89,172.84,23.29548164]
[1747590687201,23.29548164,172.87,172.78,26.0]
[1747590687516,23.29548164,172.87,172.82,23.29548164]
[1747590687682,24.74180333,172.88,172.82,23.29548164]
[1747590687877,18.64964886,172.93,172.76,26.0]
[1747590687878,23.29548164,172.91,172.8,23.29548164]
[1747590688087,32.56,172.95,172.86,23.29548164]
[1747590688281,1.4461505,172.94,172.88,23.29548164]
[1747590688711,39.1429,172.98,172.9,23.29548164]
[1747590688712,23.29548164,172.95,172.9,23.29548164]
[1747590688879,23.29548164,172.96,172.9,23.29548164]
[1747590689079,1.44599503,172.97,172.9,23.29548164]
[1747590689498,23.29548164,172.96,172.91,23.29548164]
[1747590689701,1.44599503,172.97,172.91,23.29548164]
[1747590690008,23.29548164,172.95,172.86,1.5648]
[1747590690212,7.22737099,172.97,172.9,23.29548164]
[1747590690603,23.29548164,172.96,172.91,23.29548164]
[1747590690801,24.74123235,172.95,172.9,23.29548164]
[1747590691001,1.44575071,172.95,172.9,23.29548164]
[1747590691197,23.29548164,172.96,172.91,23.29548164]
[1747590691608,1.44577984,172.97,172.91,23.29548164]
[1747590691990,23.29548164,172.96,172.9,23.29548164]
[1747590692299,23.29548164,172.96,172.9,29.07903444]
[1747590692801,23.29548164,172.96,172.9,5.7835528]
[1747590693009,1.44577984,172.97,172.9,5.7835528]
[1747590693010,1.44577984,172.97,172.9,29.07903444]
[1747590693315,24.74126148,172.97,172.91,23.29548164]
[1747590693497,30.52263249,172.97,172.92,23.29548164]
[1747590693688,24.74126148,172.97,172.92,23.29548164]
[1747590694208,5.78070969,172.99,172.93,23.29548164]
[1747590694412,5.78070969,172.99,172.86,1.5648]
[1747590694413,23.29548164,172.96,172.86,1.5648]
[1747590694724,23.29548164,172.95,172.87,26.0]
[1747590694926,23.29548164,172.94,172.87,5.7846937]
[1747590695213,23.29548164,172.94,172.89,23.29548164]
[1747590695409,23.29548164,172.95,172.89,23.29548164]
[1747590695815,23.29548164,172.95,172.9,23.29548164]
[1747590695999,5.78135152,172.97,172.91,23.29548164]
[1747590696200,24.741237,172.96,172.91,23.29548164]
[1747590696517,23.29548164,172.95,172.9,23.29548164]
[1747590696993,24.74128213,172.94,172.89,23.29548164]
[1747590697188,23.29548164,172.93,172.87,23.29548164]
[1747590697425,23.29548164,172.92,172.86,7.34981655]
[1747590697716,23.29548164,172.93,172.87,23.29548164]
[1747590697893,7.22772718,172.96,172.89,23.29548164]
[1747590698221,23.29548164,172.93,172.88,23.29548164]
[1747590698422,23.29548164,172.92,172.87,23.29548164]
[1747590698918,23.29548164,172.93,172.88,23.29548164]
[1747590699121,7.22772718,172.96,172.89,23.29548164]
[1747590699325,23.29548164,172.94,172.89,23.29548164]
[1747590699495,7.22772718,172.96,172.88,23.29548164]
[1747590699496,23.29548164,172.93,172.88,23.29548164]
[1747590699915,23.29548164,172.94,172.89,23.29548164]
[1747590700223,23.29548164,172.93,172.88,23.29548164]
[1747590700816,30.52385194,172.94,172.88,23.29548164]
[1747590701018,1.44592372,172.98,172.91,23.29548164]
[1747590701315,23.29548164,172.95,172.9,23.29548164]
[1747590702199,30.52346713,172.95,172.9,23.29548164]
[1747590702737,1.44585406,172.95,172.9,23.29548164]
[1747590702915,23.29548164,172.94,172.87,5.78441298]
[1747590703233,24.74140279,172.94,172.88,23.29548164]
[1747590703532,1.44592115,172.94,172.88,23.29548164]
[1747590703695,1.44592115,172.94,172.89,23.29548164]
[1747590704105,5.78268663,172.93,172.86,7.3497648]
[1747590704397,7.22833787,172.94,172.86,7.3497648]
[1747590704597,30.52381951,172.94,172.88,23.29548164]
[1747590704922,23.29548164,172.93,172.88,23.29548164]
[1747590705098,23.29548164,172.93,172.86,7.3497648]
[1747590705294,23.29548164,172.93,172.88,23.29548164]
[1747590705495,7.22833787,172.94,172.89,23.29548164]
[1747590705696,30.52381951,172.94,172.86,7.3497648]
[1747590705902,30.52381951,172.94,172.88,23.29548164]
[1747590706102,23.29548164,172.94,172.89,29.07948549]
[1747590706417,24.74129197,172.94,172.88,23.29548164]
[1747590706908,5.78209141,172.95,172.9,23.29548164]
[1747590706909,24.74141618,172.95,172.9,23.29548164]
[1747590707112,23.29548164,172.94,172.88,23.29548164]
[1747590707615,24.74145475,172.93,172.86,7.34975788]
[1747590707809,23.29548164,172.94,172.89,23.29548164]
[1747590708514,29.0780246,172.94,172.89,23.29548164]
[1747590708724,5.78171812,172.96,172.91,23.29548164]
[1747590708915,29.07719976,172.96,172.91,23.29548164]
[1747590709231,5.78171812,172.96,172.91,23.29548164]
[1747590709399,29.07719976,172.96,172.91,23.29548164]
[1747590709720,1.44582021,172.97,172.92,23.29548164]
[1747590710019,1.44582021,172.97,172.91,23.29548164]
[1747590710020,24.74130185,172.97,172.91,23.29548164]
[1747590710434,29.07724512,172.96,172.91,23.29548164]
[1747590710719,30.52302677,172.96,172.91,23.29548164]
[1747590710920,23.29548164,172.95,172.9,29.07911437]
[1747590711603,23.29548164,172.95,172.87,5.7846937]
[1747590711811,7.22754513,172.96,172.89,23.29548164]
[1747590712013,24.7413535,172.95,172.9,23.29548164]
[1747590712426,24.7413535,172.95,172.87,5.7846937]
[1747590712604,7.22806898,172.95,172.89,23.29548164]
[1747590712804,30.52355062,172.95,172.89,23.29548164]
[1747590714126,7.22806898,172.95,172.91,23.29548164]
[1747590714315,1.44587186,172.95,172.91,23.29548164]
[1747590714515,7.22791885,172.95,172.9,23.29548164]
[1747590714711,1.44587186,172.95,172.91,23.29548164]
[1747590715117,1.44587186,172.95,172.9,23.29548164]
[1747590715317,1.44586215,172.96,172.92,23.29548164]
[1747590715718,1.44586215,172.96,172.91,14.58316273]
[1747590716229,7.22767761,172.96,172.91,14.58316273]
[1747590717235,21.81084034,172.96,172.91,14.58316273]
[1747590717947,1.44586215,172.96,172.91,14.58316273]
[1747590718228,1.44574023,172.98,172.95,14.58316273]
[1747590718436,1.44574023,172.98,172.94,14.58316273]
[1747590718731,1.44551228,172.99,172.94,14.58316273]
[1747590719119,7.22628759,172.99,172.94,14.58316273]
[1747590719520,21.80945032,172.99,172.9,5.78368999]
[1747590719727,21.80945032,172.99,172.93,14.58316273]
[1747590720127,14.58316273,172.98,172.93,14.58316273]
[1747590720444,1.44564571,172.97,172.93,14.58316273]
[1747590720641,7.22678185,172.98,172.93,14.58316273]
[1747590720843,7.22678185,172.98,172.94,14.58316273]
[1747590721342,1.44563553,172.98,172.94,14.58316273]
[1747590721728,16.02879826,172.98,172.89,20.24408583]
[1747590722038,21.80988642,172.98,172.92,14.58316273]
[1747590722411,14.58316273,172.97,172.88,0.25]
[1747590722611,1.44574188,172.96,172.92,14.58316273]
[1747590722817,16.02890461,172.96,172.88,0.25]
[1747590723026,16.02890461,172.96,172.9,14.58316273]
[1747590723223,16.02890461,172.96,172.92,14.58316273]
[1747590723224,1.44574188,172.96,172.92,14.58316273]
[1747590723432,1.4457153,172.98,172.94,14.58316273]
[1747590724219,135.7334,173.0,172.95,14.58316273]
[1747590724423,20.36323077,173.01,172.96,14.58316273]
[1747590724622,1.6183,172.98,172.88,0.25]
[1747590724921,18.64964886,172.96,172.88,0.25]
[1747590725250,14.58316273,172.94,172.89,14.58316273]
[1747590725417,1.44621017,172.95,172.91,14.58316273]
[1747590725614,14.58316273,172.92,172.88,0.25]
[1747590725820,1.4461266,172.91,172.88,0.25]
[1747590726021,16.02928933,172.91,172.88,0.25]
[1747590726237,1.4461266,172.91,172.88,0.25]
[1747590726551,5.78368999,172.9,172.88,0.25]
[1747590727247,1.44626481,172.89,172.88,0.25]
[1747590727455,36.2973764,172.89,172.88,0.25]
[1747590727628,36.2973764,172.89,172.74,6.0588]
[1747590727629,26.0,172.85,172.74,5.78883544]
[1747590727823,1.44687247,172.84,172.78,23.37470561]
[1747590728023,1.44687247,172.84,172.79,23.37470561]
[1747590728552,1.44687247,172.84,172.78,5.78745948]
[1747590728847,1.44685211,172.85,172.73,0.88304312]
[1747590729052,23.37470561,172.81,172.71,15.27984094]
[1747590729226,1.44719313,172.8,172.75,23.37470561]
[1747590729426,1.44719313,172.8,172.77,23.37470561]
[1747590729729,1.44719505,172.85,172.79,23.37470561]
[1747590729935,1.44719505,172.85,172.81,23.37470561]
[1747590730131,1.44719505,172.85,172.75,1.5721]
[1747590730436,24.82136408,172.87,172.81,23.37470561]
[1747590730738,1.44665847,172.87,172.81,23.37470561]
[1747590730944,1.44665847,172.87,172.82,23.37470561]
[1747590731243,24.82136408,172.87,172.81,29.16131076]
[1747590731444,24.82136408,172.87,172.82,23.37470561]
[1747590732128,23.37470561,172.86,172.8,23.37470561]
[1747590732327,24.82149522,172.85,172.79,23.37470561]
[1747590732654,23.37470561,172.82,172.76,23.37470561]
[1747590732952,1.44709924,172.81,172.76,23.37470561]
[1747590733150,1.44709924,172.81,172.74,23.37470561]
[1747590733151,23.37470561,172.8,172.74,23.37470561]
[1747590733336,1.44737246,172.79,172.74,23.37470561]
[1747590733536,18.64964886,172.83,172.78,23.37470561]
[1747590733537,1.44738148,172.82,172.78,23.37470561]
[1747590733750,1.44738148,172.82,172.71,28.93380246]
[1747590734059,1.44691241,172.84,172.8,23.37470561]
[1747590734227,1.44691241,172.84,172.79,23.37470561]
[1747590734430,1.44691241,172.84,172.81,23.37470561]
[1747590734663,7.23275988,172.84,172.73,5.78938227]
[1747590734952,1.44691241,172.84,172.81,23.37470561]
[1747590735158,1.44692028,172.83,172.81,23.37470561]
[1747590735333,1.44692028,172.83,172.73,20.26283795]
[1747590735539,1.44692028,172.83,172.81,23.37470561]
[1747590735757,1.44692028,172.83,172.73,5.78938227]
[1747590735935,23.37470561,172.81,172.72,5.78970545]
[1747590736250,24.82200471,172.8,172.72,5.78970545]
[1747590736453,1.4472991,172.8,172.76,23.37470561]
[1747590736630,1.4472991,172.8,172.77,23.37470561]
[1747590736829,29.16107292,172.82,172.72,5.78941529]
[1747590737038,24.82189159,172.81,172.72,5.78941529]
[1747590737238,23.37470561,172.77,172.72,23.37470561]
[1747590737536,1.44748986,172.76,172.67,4.79720646]
[1747590737753,1.44748986,172.76,172.67,10.5884289]
[1747590737944,24.82211498,172.79,172.67,10.5884289]
[1747590738140,1.44740937,172.79,172.68,1.5721]
[1747590738334,1.44740937,172.79,172.76,23.37470561]
[1747590738541,24.82211498,172.79,172.73,23.37470561]
[1747590738739,5.78770691,172.78,172.73,23.37470561]
[1747590738930,1.44746866,172.77,172.75,23.37470561]
[1747590739955,1.44717784,172.8,172.76,23.37470561]
[1747590740133,1.44717784,172.8,172.78,23.37470561]
[1747590740335,1.44717784,172.8,172.7,23.37470561]
[1747590740546,1.44717784,172.8,172.78,23.37470561]
[1747590740744,45.07652713,172.8,172.68,1.5721]
[1747590740947,23.37470561,172.78,172.68,1.5721]
[1747590741149,23.37470561,172.76,172.7,23.37470561]
[1747590741432,1.44775238,172.75,172.72,23.37470561]
[1747590741751,1.44775238,172.75,172.67,10.58851656]
[1747590741752,1.44766623,172.79,172.74,23.37470561]
[1747590742060,1.44766623,172.79,172.75,23.37470561]
[1747590742442,1.44766623,172.79,172.77,23.37470561]
[1747590742642,1.44766623,172.79,172.68,26.0]
[1747590742841,1.44766623,172.79,172.67,107.86700153]
[1747590743155,24.82237184,172.79,172.73,23.37470561]
[1747590743655,23.37470561,172.78,172.73,23.37470561]
[1747590743863,7.23577595,172.77,172.73,23.37470561]
[1747590744066,1.44746478,172.77,172.73,23.37470561]
[1747590744446,7.23561587,172.77,172.67,10.58851656]
[1747590744744,30.61032148,172.77,172.72,23.37470561]
[1747590745064,23.37470561,172.76,172.71,23.37470561]
[1747590745268,1.44763988,172.75,172.67,10.58851656]
[1747590745740,1.44763988,172.75,172.71,23.37470561]
[1747590746152,1.44763988,172.75,172.67,4.79720646]
[1747590746153,1.44763988,172.75,172.73,23.37470561]
[1747590746353,7.23588129,172.77,172.74,23.37470561]
[1747590746559,1.44755442,172.77,172.75,23.37470561]
[1747590747048,1.44755442,172.77,172.73,23.37470561]
[1747590747243,7.23566876,172.77,172.73,23.37470561]
[1747590747660,23.37470561,172.74,172.67,4.79720646]
[1747590747858,7.23762071,172.73,172.69,23.37470561]
[1747590748057,7.23762071,172.73,172.7,23.37470561]
[1747590748360,7.23762071,172.73,172.67,4.79720646]
[1747590748555,30.61232632,172.73,172.67,4.79720646]
[1747590748758,30.61232632,172.73,172.68,23.37470561]
[1747590749262,30.61232632,172.73,172.67,28.17191207]
[1747590749651,30.61232632,172.73,172.68,23.37470561]
[1747590749652,7.23762071,172.73,172.68,23.37470561]
[1747590750764,1.44790415,172.73,172.69,23.37470561]
[1747590750964,7.23736967,172.73,172.69,23.37470561]
[1747590751167,7.23736967,172.73,172.67,10.58855549]
[1747590751168,1.44790415,172.73,172.71,23.37470561]
[1747590751463,1.44762863,172.76,172.72,23.37470561]
[1747590751669,1.44762863,172.76,172.74,23.37470561]
[1747590752269,1.44743516,172.78,172.72,5.78961376]
[1747590752450,7.23533387,172.78,172.67,12.14351758]
[1747590752657,23.37470561,172.77,172.72,23.37470561]
[1747590752867,1.44771611,172.76,172.67,12.14351758]
[1747590753062,24.82242172,172.76,172.67,12.14351758]
[1747590753265,23.37470561,172.75,172.7,23.37470561]
[1747590753576,1.44780847,172.74,172.7,23.37470561]
[1747590753782,7.23699589,172.74,172.7,23.37470561]
[1747590753950,7.23699589,172.74,172.67,6.35220646]
[1747590753951,7.23699589,172.74,172.69,23.37470561]
[1747590754146,7.23699589,172.74,172.7,23.37470561]
[1747590754570,23.37470561,172.72,172.67,4.79720646]
[1747590754752,23.37470561,172.7,172.67,4.79720646]
[1747590754950,1.44823652,172.69,172.67,28.17191207]
[1747590755571,1.44802487,172.71,172.67,28.17191207]
[1747590756081,1.44802487,172.71,172.67,4.79720646]
[1747590756268,23.37470561,172.69,172.67,4.79720646]
[1747590756448,1.44829219,172.68,172.67,4.79720646]
[1747590757083,24.8229978,172.68,172.67,4.79720646]
[1747590757683,1.44829219,172.68,172.67,4.79720646]
[1747590757862,1.44822627,172.69,172.67,4.79720646]
[1747590758181,1.44822644,172.71,172.68,23.37470561]
[1747590758566,1.44822644,172.71,172.67,28.17191207]
[1747590758952,1.44822644,172.71,172.68,23.37470561]
[1747590759151,1.44791035,172.73,172.69,23.37470561]
[1747590759552,1.44791035,172.73,172.68,23.37470561]
[1747590759753,1.44791035,172.73,172.67,10.58851333]
[1747590759965,1.44791035,172.73,172.69,5.79056948]
[1747590760172,1.44791035,172.73,172.69,29.16527509]
[1747590761455,24.82261596,172.73,172.68,29.1656142]
[1747590761758,1.44791035,172.73,172.68,29.1656142]
[1747590762379,1.44791035,172.73,172.68,5.79090859]
[1747590762556,24.82261596,172.73,172.68,29.1656142]
[1747590762757,1.44791035,172.73,172.68,5.79090859]
[1747590762958,1.44779885,172.72,172.7,23.37470561]
[1747590763157,1.44775967,172.74,172.7,23.37470561]
[1747590763585,1.44775967,172.74,172.71,23.37470561]
[1747590763791,1.44775967,172.74,172.73,23.37470561]
[1747590764280,1.44755361,172.77,172.73,29.16398231]
[1747590764464,1.44755361,172.77,172.75,23.37470561]
[1747590764899,1.44755361,172.77,172.73,5.7892767]
[1747590765204,1.44755361,172.77,172.74,23.37470561]
[1747590765691,1.44755361,172.77,172.72,5.78967051]
[1747590765984,1.44755361,172.77,172.74,23.37470561]
[1747590767380,1.44755361,172.77,172.75,23.37470561]
[1747590767685,1.44755361,172.77,172.73,5.78930674]
[1747590767686,159.10810561,172.81,172.76,23.37470561]
[1747590768020,1.44723831,172.8,172.76,23.37470561]
[1747590768462,7.23450633,172.8,172.76,23.37470561]
[1747590768783,23.37470561,172.77,172.7,5.79010279]
[1747590768981,1.4475518,172.76,172.73,23.37470561]
[1747590769157,24.82213637,172.79,172.74,23.37470561]
[1747590769361,24.82213637,172.79,172.73,23.37470561]
[1747590769589,1.44743076,172.79,172.73,23.37470561]
[1747590769785,5.78770691,172.78,172.73,23.37470561]
[1747590770085,5.78770691,172.78,172.73,18.73484261]
[1747590770385,1.44745217,172.77,172.73,18.73484261]
[1747590770583,1.44745217,172.77,172.69,5.79072326]
[1747590770792,1.44745217,172.77,172.73,23.37470561]
[1747590770961,1.44745217,172.77,172.72,23.37470561]
[1747590771587,7.23552628,172.77,172.72,23.37470561]
[1747590772388,7.23552628,172.77,172.73,23.37470561]
[1747590772584,1.44745217,172.77,172.73,23.37470561]
[1747590772893,1.44745217,172.77,172.75,23.37470561]
[1747590773098,1.44728602,172.8,172.75,23.37470561]
[1747590774095,30.6090505,172.8,172.75,23.37470561]
[1747590774266,7.23434489,172.8,172.75,23.37470561]
[1747590774593,7.23440989,172.8,172.75,23.37470561]
[1747590774803,1.44728602,172.8,172.76,23.37470561]
[1747590775471,1.44728602,172.8,172.77,23.37470561]
[1747590775677,1.44728602,172.8,172.78,14.60877618]
[1747590775883,135.7334,172.86,172.79,14.60877618]
[1747590776196,1.44677857,172.85,172.8,14.60877618]
[1747590776594,1.44677857,172.85,172.81,14.60877618]
[1747590777075,1.44663992,172.86,172.81,14.60877618]
[1747590777584,14.60877618,172.85,172.77,5.78782108]
[1747590777881,14.60877618,172.85,172.74,47.29217993]
[1747590777882,23.36981653,172.78,172.68,1.6494]
[1747590778078,1.4475087,172.77,172.73,23.36981653]
[1747590778596,1.4475087,172.77,172.75,23.36981653]
[1747590778900,5.78737195,172.79,172.74,23.36981653]
[1747590779073,1.44731328,172.78,172.71,5.78995466]
[1747590779394,1.44731328,172.78,172.74,23.36981653]
[1747590779775,1.44731328,172.78,172.71,5.78995466]
[1747590779973,1.44731328,172.78,172.74,23.36981653]
[1747590780391,1.44724463,172.79,172.77,23.36981653]
[1747590780597,5.7866437,172.82,172.71,5.78995466]
[1747590780779,1.44703976,172.81,172.78,23.36981653]
[1747590781113,1.44703976,172.81,172.77,23.36981653]
[1747590781276,1.44703976,172.81,172.78,23.36981653]
[1747590781599,5.78606282,172.83,172.8,23.36981653]
[1747590781780,5.78606282,172.83,172.79,23.36981653]
[1747590782091,1.44689243,172.82,172.76,1.6205]
[1747590782305,1.44689243,172.82,172.77,23.36981653]
[1747590782878,1.44689243,172.82,172.76,1.6205]
[1747590783196,1.44689243,172.82,172.78,23.36981653]
[1747590783380,5.78670215,172.81,172.78,23.36981653]
[1747590783774,5.78670215,172.81,172.7,95.64558215]
[1747590783775,18.64964886,172.78,172.67,4.79720646]
[1747590783986,23.36981653,172.76,172.67,4.79720646]
[1747590784188,1.44766454,172.75,172.71,23.36981653]
[1747590784473,1.44766454,172.75,172.72,23.36981653]
[1747590784688,24.81734527,172.79,172.73,23.36981653]
[1747590784886,1.44752874,172.79,172.74,23.36981653]
[1747590785096,1.44752874,172.79,172.68,31.8]
[1747590785306,7.23521369,172.79,172.75,23.36981653]
[1747590785520,7.23521369,172.79,172.74,23.36981653]
[1747590785695,1.44752874,172.79,172.76,23.36981653]
[1747590785897,7.23513716,172.79,172.75,23.36981653]
[1747590786202,30.60495369,172.79,172.74,23.36981653]
[1747590786788,7.23513716,172.79,172.75,23.36981653]
[1747590786993,7.23513716,172.79,172.73,1.6437]
[1747590787235,7.23513716,172.79,172.75,23.36981653]
[1747590787805,7.23513716,172.79,172.73,1.6437]
[1747590788009,7.23513716,172.79,172.74,23.36981653]
[1747590788221,7.23513716,172.79,172.75,23.36981653]
[1747590788835,7.23513716,172.79,172.74,23.36981653]
[1747590789008,1.44752874,172.79,172.73,1.6437]
[1747590789206,1.44752874,172.79,172.77,23.36981653]
[1747590789405,7.23411541,172.81,172.77,23.36981653]
[1747590789598,7.23411541,172.81,172.73,1.6437]
[1747590789800,30.60393194,172.81,172.73,1.6437]
[1747590790120,7.23411541,172.81,172.76,23.36981653]
[1747590790310,7.23411541,172.81,172.73,25.01351653]
[1747590790535,45.07068733,172.81,172.75,23.36981653]
[1747590791008,1.44713318,172.81,172.78,23.36981653]
[1747590791727,7.23305095,172.83,172.79,23.36981653]
[1747590791905,1.44697637,172.83,172.8,23.36981653]
[1747590792605,7.23311276,172.83,172.76,5.788272]
[1747590792799,7.23311276,172.83,172.79,23.36981653]
[1747590792999,1.44697637,172.83,172.8,23.36981653]
[1747590793225,1.44697637,172.83,172.76,5.788272]
[1747590793407,7.23314722,172.83,172.8,23.36981653]
[1747590793714,135.7334,172.85,172.82,23.36981653]
[1747590793897,141.51880208,172.85,172.82,23.36981653]
[1747590794108,141.51880208,172.85,172.81,23.36981653]
[1747590794317,141.51880208,172.85,172.68,1.6213]
[1747590794318,74.28716539,172.82,172.68,1.6213]
[1747590794519,18.64964886,172.78,172.68,1.6213]